bitfinex-derivatives/quotes_BTCF0:USTF0_20210109
["timestamp","ask_amount","ask_price","bid_price","bid_amount"]
[1610227557941,0.13632608,40664.0,40656.0,0.22932608]
[1610227559143,1.0,40674.0,40661.0,2.938]
[1610227559343,1.0,40674.0,40673.0,0.13632608]
[1610227559941,0.2811,40684.0,40673.0,0.13632608]
[1610227561444,0.2811,40684.0,40679.0,0.13632608]
[1610227561844,1.0,40683.0,40679.0,0.13632608]
[1610227562345,1.0,40683.0,40661.0,2.938]
[1610227563450,0.13632608,40665.0,40664.0,0.13632608]
[1610227564850,1.5,40720.0,40664.0,0.13632608]
[1610227565050,1.5,40720.0,40668.0,3.0583]
[1610227565250,0.2735,40719.0,40668.0,3.0583]
[1610227565451,0.33378947,40719.0,40678.0,0.13632608]
[1610227565651,0.2993,40718.0,40678.0,0.13632608]
[1610227565852,1.0,40693.0,40678.0,0.68482608]
[1610227566251,1.11964,40693.0,40678.0,0.68482608]
[1610227567352,0.13632608,40679.0,40678.0,0.68482608]
[1610227567553,0.13632608,40679.0,40678.0,0.5485]
[1610227568352,0.11013,40684.0,40678.0,0.5485]
[1610227569353,0.11013,40684.0,40683.0,0.13632608]
[1610227573358,0.13632608,40687.0,40683.0,0.13632608]
[1610227573860,1.0,40684.0,40683.0,0.13632608]
[1610227575863,0.13632608,40687.0,40683.0,0.13632608]
[1610227576763,0.13632608,40687.0,40678.0,0.5485]
[1610227577463,0.13632608,40679.0,40678.0,0.5485]
[1610227579465,1.0,40683.0,40678.0,0.5485]
[1610227579865,0.13632608,40692.0,40678.0,0.5485]
[1610227581367,0.13632608,40692.0,40691.0,0.13632608]
[1610227581571,0.13632608,40692.0,40678.0,0.5485]
[1610227583568,0.11964,40693.0,40688.0,0.13632608]
[1610227583870,1.0,40696.0,40688.0,0.13632608]
[1610227585470,0.13632608,40689.0,40688.0,0.13632608]
[1610227587674,0.13632608,40689.0,40678.0,0.5485]
[1610227587874,0.13632608,40689.0,40676.0,0.10637]
[1610227589474,0.11023,40689.0,40677.0,0.00020877]
[1610227589674,0.11023,40689.0,40661.0,3.7828]
[1610227589874,5.0,40677.0,40661.0,3.7828]
[1610227590075,5.1103,40677.0,40662.0,0.00020882]
[1610227590476,5.1103,40677.0,40653.0,0.00020882]
[1610227590674,5.1103,40677.0,40647.0,2.9692]
[1610227590675,5.1103,40677.0,40663.0,0.00020884]
[1610227590874,5.1103,40677.0,40654.0,0.00020884]
[1610227591278,5.1103,40677.0,40648.0,0.00020884]
[1610227591477,5.1103,40677.0,40655.0,0.00020884]
[1610227591677,5.1103,40677.0,40654.0,0.13632608]
[1610227591878,1.0,40656.0,40654.0,0.13632608]
[1610227593077,1.0,40656.0,40654.0,0.70572608]
[1610227593880,0.13632608,40672.0,40655.0,0.00020732]
[1610227594080,0.1103,40677.0,40658.0,3.1412]
[1610227594483,0.1103,40677.0,40659.0,0.00020732]
[1610227595281,1.0,40687.0,40659.0,0.00020732]
[1610227595485,1.0,40687.0,40676.0,0.13632608]
[1610227595884,0.2842,40696.0,40676.0,0.13632608]
[1610227596283,0.2842,40696.0,40658.0,3.1412]
[1610227596882,0.03044405,40695.0,40658.0,3.1412]
[1610227597483,0.03044405,40695.0,40662.0,0.13632608]
[1610227597983,1.0,40668.0,40662.0,0.13632608]
[1610227599386,1.0,40668.0,40663.0,0.00020728]
[1610227599588,1.0,40668.0,40667.0,0.13632608]
[1610227599785,1.0,40668.0,40667.0,0.61482608]
[1610227599986,0.10119,40680.0,40667.0,0.61482608]
[1610227600485,1.0,40693.0,40667.0,0.61482608]
[1610227601491,1.0,40693.0,40690.0,0.13632608]
[1610227601892,1.0,40692.0,40690.0,0.13632608]
[1610227602492,1.0,40692.0,40681.0,4.1115]
[1610227603494,1.0,40692.0,40686.0,0.13632608]
[1610227604296,1.0,40692.0,40681.0,4.1115]
[1610227605598,0.13632608,40682.0,40681.0,4.1115]
[1610227608304,0.13632608,40682.0,40677.0,0.13632608]
[1610227609303,0.13632608,40682.0,40668.0,2.7708]
[1610227609704,1.0,40683.0,40675.0,0.13632608]
[1610227609905,0.11518,40690.0,40675.0,0.13632608]
[1610227610905,0.2842,40696.0,40675.0,0.13632608]
[1610227611307,3.5995,40688.0,40663.0,2.61053528]
[1610227611506,0.09443,40689.0,40663.0,2.61053528]
[1610227611706,0.09443,40689.0,40663.0,0.10549]
[1610227611906,1.13632608,40664.0,40659.0,2.50814161]
[1610227612106,1.13632608,40664.0,40663.0,0.11459]
[1610227614309,1.65892608,40664.0,40663.0,0.11459]
[1610227614507,1.65892608,40664.0,40650.0,2.51047292]
[1610227614907,1.65892608,40664.0,40649.0,2.51180775]
[1610227615308,1.65892608,40664.0,40647.0,2.8429]
[1610227615908,0.13632608,40648.0,40647.0,2.8429]
[1610227617509,0.101,40669.0,40645.0,0.08776]
[1610227617710,0.101,40669.0,40646.0,3.4993]
[1610227617910,0.101,40669.0,40654.0,0.13632608]
[1610227619813,0.13632608,40655.0,40654.0,0.13632608]
[1610227623415,0.13632608,40655.0,40646.0,6.0085321]
[1610227623614,0.13632608,40655.0,40646.0,2.5092321]
[1610227623814,1.13632608,40655.0,40645.0,2.51060116]
[1610227624013,1.0,40655.0,40648.0,0.13632608]
[1610227625816,0.1016,40671.0,40648.0,0.13632608]
[1610227626016,0.13632608,40649.0,40648.0,0.13632608]
[1610227626218,0.13632608,40649.0,40644.0,0.09428]
[1610227626417,0.13632608,40649.0,40640.0,2.51504103]
[1610227626617,0.13632608,40649.0,40638.0,2.51557031]
[1610227627417,0.0968,40669.0,40638.0,2.51557031]
[1610227627619,0.0968,40669.0,40640.0,2.51309725]
[1610227627820,0.2995,40677.0,40648.0,2.919]
[1610227628023,0.13632608,40662.0,40661.0,0.13632608]
[1610227628621,0.13632608,40662.0,40661.0,0.59382608]
[1610227628820,1.0,40671.0,40661.0,0.59382608]
[1610227629021,1.0,40671.0,40661.0,0.13632608]
[1610227629220,1.0,40671.0,40670.0,3.5662]
[1610227629823,1.0,40696.0,40670.0,3.5662]
[1610227630022,0.13632608,40684.0,40683.0,0.13632608]
[1610227630223,0.13632608,40684.0,40683.0,4.06182608]
[1610227631422,0.13632608,40684.0,40683.0,3.9255]
[1610227633926,1.13632608,40684.0,40683.0,3.9255]
[1610227635929,0.13632608,40684.0,40683.0,4.06182608]
[1610227638332,0.13632608,40684.0,40683.0,3.9255]
[1610227640034,0.13632608,40684.0,40683.0,4.06182608]
[1610227641634,0.13632608,40684.0,40683.0,3.9255]
[1610227645939,1.13632608,40684.0,40683.0,3.9255]
[1610227647939,0.13632608,40684.0,40683.0,3.9255]
[1610227648141,0.13632608,40684.0,40683.0,4.06182608]
[1610227663259,0.13632608,40684.0,40683.0,4.02832608]
[1610227675579,1.0,40693.0,40683.0,4.02832608]
[1610227675779,1.0,40693.0,40683.0,0.13653355]
[1610227675978,0.01073814,40734.0,40683.0,0.13653355]
[1610227675979,1.0,40715.0,40692.0,2.8473]
[1610227676379,1.0,40715.0,40708.0,0.13632608]
[1610227676579,0.09068313,40714.0,40708.0,0.13632608]
[1610227676779,0.03042856,40714.0,40708.0,0.13632608]
[1610227676980,0.03042498,40713.0,40708.0,0.13632608]
[1610227677281,0.07972,40714.0,40708.0,0.13632608]
[1610227678282,0.13632608,40709.0,40708.0,0.13632608]
[1610227678883,0.13632608,40709.0,40693.0,3.895]
[1610227680286,0.07972,40714.0,40700.0,0.13632608]
[1610227680687,0.03042726,40713.0,40700.0,0.13632608]
[1610227681086,0.07972,40714.0,40700.0,0.13632608]
[1610227681888,1.0,40705.0,40700.0,0.13632608]
[1610227682290,0.13632608,40704.0,40702.0,3.22]
[1610227683391,0.13632608,40704.0,40700.0,0.13632608]
[1610227683590,0.13632608,40704.0,40687.0,0.08786]
[1610227683793,0.13632608,40704.0,40683.0,3.8169]
[1610227683991,1.0,40701.0,40683.0,3.8169]
[1610227684193,1.0,40701.0,40684.0,0.00020591]
[1610227684392,0.13632608,40685.0,40684.0,0.00020591]
[1610227684792,0.13632608,40685.0,40684.0,3.56000591]
[1610227684992,0.13632608,40685.0,40684.0,3.5598]
[1610227685193,0.13632608,40685.0,40684.0,3.56000591]
[1610227685494,0.13632608,40685.0,40684.0,3.5598]
[1610227686593,1.0,40686.0,40684.0,3.5598]
[1610227687595,1.0,40686.0,40685.0,0.00020591]
[1610227687997,0.09816,40711.0,40685.0,0.00020591]
[1610227688394,0.35524832,40732.0,40709.0,0.13632608]
[1610227688795,0.03042549,40731.0,40711.0,3.8504]
[1610227688994,0.11929549,40731.0,40711.0,3.8504]
[1610227689496,0.03042449,40730.0,40711.0,3.8504]
[1610227690498,0.03042449,40730.0,40716.0,0.13632608]
[1610227692598,0.13632608,40717.0,40716.0,0.13632608]
[1610227692800,0.21847608,40717.0,40716.0,0.13632608]
[1610227699910,0.21847608,40717.0,40705.0,3.3541]
[1610227700111,0.21847608,40717.0,40691.0,2.47584371]
[1610227700310,0.21847608,40717.0,40699.0,3.463]
[1610227700512,0.13632608,40709.0,40708.0,0.13632608]
[1610227703615,0.08215,40717.0,40708.0,0.13632608]
[1610227703816,0.08215,40717.0,40708.0,0.59402608]
[1610227704015,0.08887,40731.0,40708.0,0.59402608]
[1610227704418,0.03042165,40730.0,40708.0,0.59402608]
[1610227704617,0.12920165,40730.0,40720.0,0.13632608]
[1610227704817,0.09878,40730.0,40720.0,0.13632608]
[1610227705218,0.03042173,40729.0,40720.0,0.13632608]
[1610227706318,0.03042173,40729.0,40708.0,0.4577]
[1610227706720,0.03042173,40729.0,40709.0,0.13632608]
[1610227707522,0.03042173,40729.0,40708.0,0.4577]
[1610227707721,0.03042173,40729.0,40691.0,2.47374013]
[1610227707923,1.0,40717.0,40690.0,2.47526259]
[1610227708124,1.11866,40717.0,40699.0,4.0784]
[1610227708723,1.11866,40717.0,40704.0,0.13632608]
[1610227709727,1.11866,40717.0,40711.0,3.8187]
[1610227709924,0.11866,40717.0,40711.0,3.8187]
[1610227710729,0.11866,40717.0,40716.0,0.13632608]
[1610227713234,0.13632608,40721.0,40716.0,0.13632608]
[1610227714233,0.09878,40730.0,40716.0,0.13632608]
[1610227714434,0.2811,40741.0,40716.0,0.13632608]
[1610227714636,0.13632608,40719.0,40716.0,0.13632608]
[1610227715035,0.22462608,40719.0,40716.0,0.13632608]
[1610227715634,0.22462608,40719.0,40701.0,3.226]
[1610227716036,0.22462608,40719.0,40702.0,0.00020722]
[1610227716636,0.13632608,40706.0,40705.0,0.13632608]
[1610227716836,0.13632608,40706.0,40691.0,2.48297785]
[1610227717037,0.13632608,40706.0,40689.0,2.48155187]
[1610227717236,0.13632608,40706.0,40692.0,0.00020724]
[1610227717636,0.13632608,40706.0,40689.0,0.00020724]
[1610227717835,0.13632608,40706.0,40693.0,0.00020724]
[1610227718037,1.0,40700.0,40690.0,0.00020724]
[1610227718339,1.0,40700.0,40689.0,0.00020724]
[1610227718637,1.0,40700.0,40691.0,0.00020724]
[1610227718838,1.0,40700.0,40690.0,0.13653332]
[1610227719236,1.0,40700.0,40691.0,0.00020724]
[1610227719940,0.2764,40718.0,40691.0,0.00020724]
[1610227720441,0.03042576,40717.0,40691.0,0.00020724]
[1610227720641,0.13632608,40692.0,40691.0,0.00020724]
[1610227721943,1.0,40706.0,40691.0,0.00020724]
[1610227722745,1.0,40706.0,40698.0,0.13632608]
[1610227723343,1.0,40706.0,40688.0,0.10652]
[1610227723546,1.0,40706.0,40687.0,3.725]
[1610227723745,1.0,40706.0,40689.0,0.00020727]
[1610227723945,1.0,40703.0,40689.0,0.11368]
[1610227724844,1.0,40703.0,40698.0,0.13632608]
[1610227726046,0.2764,40718.0,40698.0,0.13632608]
[1610227726547,0.03042677,40717.0,40698.0,0.13632608]
[1610227726745,0.13632608,40699.0,40698.0,0.13632608]
[1610227734657,0.2764,40718.0,40698.0,0.13632608]
[1610227734858,0.2764,40718.0,40708.0,0.13632608]
[1610227736659,0.2764,40718.0,40709.0,0.5477]
[1610227736859,0.13632608,40714.0,40713.0,0.13632608]
[1610227738961,0.13632608,40714.0,40712.0,3.7417]
[1610227740966,0.13632608,40714.0,40712.0,3.87802608]
[1610227741865,0.13632608,40714.0,40698.0,0.09958]
[1610227742068,1.0,40713.0,40691.0,2.47584686]
[1610227742468,1.0,40713.0,40690.0,2.47698294]
[1610227742868,1.0,40713.0,40701.0,0.13632608]
[1610227744067,1.0,40703.0,40689.0,0.11368]
[1610227744268,1.0,40703.0,40688.0,5.75504787]
[1610227744667,1.0,40703.0,40689.0,0.00020728]
[1610227744867,1.0,40703.0,40694.0,0.13632608]
[1610227745869,0.09507,40710.0,40694.0,0.13632608]
[1610227747070,0.09507,40710.0,40701.0,0.13632608]
[1610227748673,0.09507,40710.0,40698.0,3.3342]
[1610227749074,0.13632608,40699.0,40695.0,0.13632608]
[1610227749275,0.13632608,40699.0,40686.0,2.48911141]
[1610227749472,0.13632608,40699.0,40678.0,0.08016]
[1610227749473,0.13632608,40699.0,40684.0,2.49016551]
[1610227749673,0.13632608,40699.0,40687.0,0.00020732]
[1610227749873,0.13632608,40699.0,40685.0,0.00020732]
[1610227750073,1.0,40695.0,40688.0,0.00020732]
[1610227750472,1.0,40695.0,40684.0,0.00020732]
[1610227750673,1.0,40695.0,40680.0,2.49203425]
[1610227751075,0.13632608,40681.0,40675.0,2.49494114]
[1610227751480,0.13632608,40681.0,40676.0,0.00020736]
[1610227751680,0.13632608,40681.0,40669.0,2.58703654]
[1610227751877,1.0,40677.0,40669.0,2.58703654]
[1610227752077,1.0,40677.0,40669.0,0.09053]
[1610227752276,1.0,40677.0,40670.0,0.00020739]
[1610227752878,1.0,40677.0,40667.0,0.00020739]
[1610227753078,1.0,40677.0,40671.0,0.00020739]
[1610227753278,1.0,40677.0,40669.0,0.13632608]
[1610227754078,1.0,40684.0,40669.0,0.13632608]
[1610227754279,1.0,40684.0,40669.0,3.64622608]
[1610227754980,1.0,40684.0,40676.0,0.13632608]
[1610227755978,0.10067,40689.0,40676.0,0.13632608]
[1610227756179,0.10067,40689.0,40663.0,0.09069]
[1610227756380,3.7773,40681.0,40663.0,0.09069]
[1610227756979,0.13632608,40664.0,40663.0,0.09069]
[1610227757578,0.13632608,40664.0,40661.0,0.13632608]
[1610227761485,1.0,40666.0,40661.0,0.13632608]
[1610227761685,1.0,40666.0,40661.0,0.22761608]
[1610227761887,4.0,40668.0,40661.0,0.22761608]
[1610227763087,0.13632608,40665.0,40661.0,0.22761608]
[1610227774697,0.13632608,40665.0,40661.0,0.09129]
[1610227774900,3.9423,40656.0,40648.0,2.50532342]
[1610227775097,0.13632608,40649.0,40648.0,2.50532342]
[1610227775499,0.13632608,40649.0,40644.0,2.5080175]
[1610227775903,3.1023,40643.0,40639.0,2.51070739]
[1610227776099,3.1023,40643.0,40633.0,2.65839606]
[1610227776100,3.1023,40643.0,40635.0,2.51263253]
[1610227776300,1.0,40645.0,40635.0,2.51263253]
[1610227776499,1.0,40645.0,40635.0,0.08763]
[1610227777302,0.13632608,40636.0,40635.0,0.08763]
[1610227777900,1.13632608,40636.0,40635.0,0.08763]
[1610227778300,1.13632608,40636.0,40619.0,2.51940399]
[1610227778501,1.13632608,40636.0,40615.0,2.51914038]
[1610227778700,1.13632608,40636.0,40620.0,0.00020633]
[1610227778899,3.856,40621.0,40620.0,0.11465]
[1610227779100,1.13632608,40636.0,40620.0,0.11465]
[1610227779299,0.13632608,40621.0,40620.0,0.11465]
[1610227779701,4.18642608,40621.0,40620.0,0.11465]
[1610227781003,0.13632608,40621.0,40620.0,0.11465]
[1610227782802,1.0,40626.0,40620.0,0.11465]
[1610227783204,1.0,40626.0,40625.0,0.13632608]
[1610227783904,0.13632608,40629.0,40625.0,0.13632608]
[1610227784904,0.09231,40637.0,40625.0,0.13632608]
[1610227785305,0.09231,40637.0,40636.0,0.13632608]
[1610227786104,1.0,40661.0,40636.0,0.70552608]
[1610227786304,1.0,40661.0,40636.0,0.13632608]
[1610227786506,1.0,40661.0,40636.0,4.09842608]
[1610227787206,1.0,40661.0,40660.0,0.13632608]
[1610227788007,0.13632608,40666.0,40660.0,0.13632608]
[1610227788807,0.13632608,40666.0,40647.0,0.11241]
[1610227789207,0.13632608,40648.0,40647.0,0.11241]
[1610227789505,0.13632608,40648.0,40645.0,0.13632608]
[1610227790905,1.0,40653.0,40645.0,0.13632608]
[1610227791306,1.0,40653.0,40640.0,0.07243]
[1610227791307,1.0,40653.0,40652.0,0.13632608]
[1610227791906,0.13632608,40666.0,40652.0,0.13632608]
[1610227793306,0.2847,40673.0,40660.0,0.13632608]
[1610227795310,0.13632608,40671.0,40669.0,0.13632608]
[1610227797612,0.13632608,40671.0,40655.0,3.0113]
[1610227799320,0.13632608,40671.0,40670.0,0.13632608]
[1610227800119,0.13632608,40671.0,40655.0,3.0113]
[1610227801219,0.11998,40681.0,40655.0,3.0113]
[1610227801419,0.13632608,40683.0,40680.0,0.13632608]
[1610227801621,0.2913,40702.0,40680.0,0.13632608]
[1610227801819,0.2865,40726.0,40689.0,2.8508]
[1610227802020,0.00030143,40701.0,40689.0,2.8508]
[1610227802223,0.11549143,40701.0,40689.0,2.8508]
[1610227802420,0.11519,40701.0,40689.0,2.8508]
[1610227803421,0.11519,40701.0,40700.0,0.13632608]
[1610227803622,0.11519,40701.0,40700.0,0.69822608]
[1610227806724,0.11519,40701.0,40700.0,0.13632608]
[1610227807125,0.13632608,40721.0,40700.0,0.13632608]
[1610227807325,0.13632608,40701.0,40700.0,0.13632608]
[1610227807527,0.13632608,40701.0,40687.0,0.08433]
[1610227808526,0.24419608,40701.0,40678.0,0.12001]
[1610227808727,0.24419608,40701.0,40668.0,2.49668948]
[1610227809129,0.24419608,40701.0,40666.0,4.1099]
[1610227809329,0.10787,40701.0,40686.0,0.13632608]
[1610227813434,0.10787,40701.0,40700.0,0.13632608]
[1610227813635,0.10565,40712.0,40700.0,0.13632608]
[1610227813834,0.10565,40712.0,40685.0,0.07944]
[1610227814033,1.0,40704.0,40685.0,0.07944]
[1610227815437,0.13632608,40691.0,40690.0,0.13632608]
[1610227815835,0.13632608,40691.0,40685.0,0.07944]
[1610227816037,1.13632608,40691.0,40672.0,0.11746]
[1610227816838,1.13632608,40691.0,40664.0,3.8716]
[1610227817340,1.0,40691.0,40686.0,0.13632608]
[1610227817939,1.0,40694.0,40686.0,0.13632608]
[1610227819342,1.0,40694.0,40691.0,0.13632608]
[1610227819943,0.2732,40701.0,40691.0,0.13632608]
[1610227820946,0.2732,40701.0,40673.0,0.08231]
[1610227821145,0.2732,40701.0,40675.0,2.9687]
[1610227821347,0.2732,40701.0,40696.0,0.13632608]
[1610227822146,1.0,40700.0,40696.0,0.13632608]
[1610227823548,0.13632608,40697.0,40696.0,0.13632608]
[1610227824548,0.13632608,40697.0,40682.0,0.11688]
[1610227825552,1.0,40700.0,40688.0,0.13632608]
[1610227825954,1.0,40694.0,40688.0,0.13632608]
[1610227827458,0.13632608,40689.0,40688.0,0.13632608]
[1610227827856,0.13632608,40689.0,40682.0,0.11688]
[1610227828057,0.13632608,40689.0,40673.0,0.08231]
[1610227828256,0.13632608,40689.0,40660.0,2.50192665]
[1610227828459,0.13632608,40689.0,40653.0,3.7691]
[1610227829458,3.132,40691.0,40658.0,0.13632608]
[1610227830059,1.0,40668.0,40658.0,0.13632608]
[1610227831361,0.13632608,40659.0,40658.0,0.13632608]
[1610227835764,0.13632608,40659.0,40650.0,0.09372]
[1610227835968,0.13632608,40659.0,40641.0,0.1556]
[1610227837568,3.3269,40664.0,40651.0,0.13632608]
[1610227837767,3.3269,40664.0,40646.0,0.05894608]
[1610227837967,1.0,40663.0,40646.0,0.05894608]
[1610227839570,0.13632608,40647.0,40646.0,0.05894608]
[1610227842576,0.13632608,40647.0,40640.0,0.13632608]
[1610227843580,0.13632608,40641.0,40640.0,0.13632608]
[1610227844181,0.13632608,40641.0,40632.0,2.52200998]
[1610227844382,0.13632608,40641.0,40633.0,2.52344507]
[1610227844580,0.13632608,40641.0,40633.0,2.60717507]
[1610227845080,3.3269,40664.0,40633.0,2.60717507]
[1610227845081,3.3269,40664.0,40634.0,2.52472109]
[1610227845281,3.3269,40664.0,40635.0,2.52473344]
[1610227845480,3.3269,40664.0,40650.0,0.13632608]
[1610227845681,0.10891,40665.0,40650.0,0.13632608]
[1610227845880,0.08096,40675.0,40650.0,0.13632608]
[1610227846081,3.0675,40678.0,40650.0,0.13632608]
[1610227847480,3.0675,40678.0,40645.0,0.09877]
[1610227847481,0.13632608,40651.0,40645.0,0.23509608]
[1610227849487,0.13632608,40646.0,40645.0,0.23509608]
[1610227852388,0.13632608,40646.0,40645.0,0.09877]
[1610227852589,0.13632608,40646.0,40636.0,2.52706346]
[1610227853190,0.13632608,40646.0,40635.0,2.52714724]
[1610227853590,0.2932,40660.0,40639.0,0.13632608]
[1610227854093,1.0,40654.0,40639.0,0.13632608]
[1610227855492,1.0,40654.0,40634.0,2.52693903]
[1610227855493,1.0,40654.0,40648.0,0.13632608]
[1610227855991,1.07773,40656.0,40648.0,0.13632608]
[1610227856393,1.07773,40656.0,40634.0,2.52693903]
[1610227856792,1.07773,40656.0,40635.0,0.00020431]
[1610227857392,1.07773,40656.0,40634.0,0.00020433]
[1610227857593,0.13632608,40635.0,40634.0,0.13632608]
[1610227858194,1.0,40641.0,40634.0,0.13653042]
[1610227858593,1.0,40641.0,40635.0,0.00020434]
[1610227859594,1.13632608,40641.0,40640.0,0.13632608]
[1610227859995,0.07773,40656.0,40640.0,0.13653042]
[1610227860397,3.512,40657.0,40640.0,0.13653042]
[1610227860597,3.512,40657.0,40641.0,0.00020434]
[1610227861496,3.512,40657.0,40653.0,0.13632608]
[1610227862099,1.0,40654.0,40653.0,0.13632608]
[1610227863499,1.0,40654.0,40653.0,0.13653038]
[1610227864100,0.13632608,40673.0,40653.0,0.13653038]
[1610227864500,0.13632608,40673.0,40654.0,0.00020427]
[1610227865500,3.1227,40682.0,40664.0,0.13632608]
[1610227866099,1.0,40665.0,40664.0,0.13632608]
[1610227867503,1.13632608,40665.0,40664.0,0.13632608]
[1610227870106,0.13632608,40665.0,40664.0,0.13632608]
[1610227871407,0.13632608,40665.0,40644.0,2.59694169]
[1610227871608,0.13632608,40660.0,40659.0,0.13632608]
[1610227871809,0.13632608,40660.0,40644.0,0.07317]
[1610227872010,1.13632608,40660.0,40642.0,0.1556]
[1610227872210,1.13632608,40660.0,40645.0,0.00020426]
[1610227872411,1.13632608,40660.0,40645.0,0.09312]
[1610227872810,1.13632608,40660.0,40646.0,0.00020426]
[1610227873716,1.0,40660.0,40648.0,0.13632608]
[1610227874113,3.5939,40666.0,40649.0,0.00020428]
[1610227875716,3.5939,40666.0,40654.0,0.13632608]
[1610227877317,3.5939,40666.0,40642.0,0.1556]
[1610227877717,0.13632608,40649.0,40648.0,0.13632608]
[1610227878118,0.10039,40659.0,40648.0,0.13632608]
[1610227878119,1.0,40657.0,40648.0,0.13653037]
[1610227878519,1.0,40657.0,40649.0,0.00020429]
[1610227879622,1.0,40657.0,40656.0,0.13632608]
[1610227880020,0.13632608,40669.0,40656.0,0.13632608]
[1610227880222,0.13632608,40669.0,40656.0,0.13653031]
[1610227880422,0.13632608,40669.0,40657.0,0.00020423]
[1610227881624,0.13632608,40669.0,40668.0,0.13632608]
[1610227882425,0.13632608,40669.0,40651.0,2.53685417]
[1610227882627,0.13632608,40669.0,40650.0,2.53811078]
[1610227882827,0.13632608,40669.0,40652.0,0.00020424]
[1610227883027,0.13632608,40669.0,40651.0,2.53833181]
[1610227883327,0.13632608,40669.0,40652.0,0.00020424]
[1610227883627,0.13632608,40661.0,40660.0,0.13632608]
[1610227886831,0.13632608,40661.0,40651.0,2.54400711]
[1610227887235,0.13632608,40661.0,40652.0,0.00020296]
[1610227887431,0.13632608,40661.0,40653.0,2.54580167]
[1610227887633,1.0,40662.0,40657.0,0.13632608]
[1610227888033,1.0,40660.0,40657.0,0.13632608]
[1610227889134,1.0,40660.0,40658.0,0.00020296]
[1610227890136,0.22768608,40673.0,40659.0,2.54748588]
[1610227890736,0.22768608,40673.0,40660.0,0.00020296]
[1610227891735,0.13632608,40665.0,40664.0,0.13632608]
[1610227893737,0.13632608,40665.0,40656.0,2.54747286]
[1610227894036,1.13632608,40665.0,40656.0,2.54747286]
[1610227894237,1.13632608,40665.0,40653.0,2.54764836]
[1610227894438,1.13632608,40665.0,40657.0,0.00020297]
[1610227894638,1.13632608,40665.0,40654.0,2.54784908]
[1610227894839,1.13632608,40665.0,40658.0,0.00020297]
[1610227895239,1.13632608,40665.0,40655.0,0.00020297]
[1610227895438,1.13632608,40665.0,40654.0,2.54764611]
[1610227895639,1.0,40665.0,40660.0,0.13632608]
[1610227896038,1.0,40664.0,40660.0,0.13632608]
[1610227897543,1.0,40664.0,40652.0,2.6522996]
[1610227897742,1.0,40664.0,40655.0,0.13632608]
[1610227899042,1.0,40664.0,40656.0,0.00020298]
[1610227899443,1.0,40664.0,40655.0,0.13632608]
[1610227899642,0.13632608,40656.0,40655.0,0.13632608]
[1610227902243,0.13632608,40656.0,40649.0,2.54819501]
[1610227902646,3.4393,40651.0,40650.0,0.00020299]
[1610227903444,3.4393,40651.0,40647.0,0.00020299]
[1610227903645,0.13632608,40648.0,40644.0,2.54853852]
[1610227903845,0.13632608,40648.0,40643.0,2.54868221]
[1610227904046,1.13632608,40648.0,40642.0,2.54870142]
[1610227904247,1.13632608,40648.0,40645.0,0.00020301]
[1610227904446,1.13632608,40648.0,40643.0,0.00020301]
[1610227904645,1.13632608,40648.0,40646.0,0.00020301]
[1610227905046,1.13632608,40648.0,40644.0,0.00020301]
[1610227905249,1.13632608,40648.0,40641.0,2.54848362]
[1610227905447,1.13632608,40648.0,40645.0,0.00020301]
[1610227905846,1.13632608,40648.0,40643.0,0.13632608]
[1610227906046,0.13632608,40648.0,40646.0,0.00020301]
[1610227906246,0.13632608,40648.0,40644.0,0.00020301]
[1610227906647,0.13632608,40648.0,40643.0,0.13632608]
[1610227906849,0.13632608,40648.0,40645.0,0.00020301]
[1610227907048,0.13632608,40648.0,40643.0,0.13632608]
[1610227908150,1.0,40646.0,40643.0,0.13632608]
[1610227909155,1.0,40646.0,40639.0,2.54763427]
[1610227909553,1.0,40646.0,40638.0,2.54699897]
[1610227909753,1.0,40646.0,40640.0,0.13652911]
[1610227909953,1.0,40646.0,40640.0,0.13632608]
[1610227910155,1.4555,40643.0,40640.0,0.13632608]
[1610227910356,1.0,40643.0,40637.0,2.54700776]
[1610227910755,3.267,40637.0,40635.0,2.54665308]
[1610227911155,3.267,40637.0,40633.0,2.63049604]
[1610227911355,1.0,40643.0,40633.0,0.08373]
[1610227911555,3.5948,40634.0,40631.0,2.54621292]
[1610227911756,0.13632608,40632.0,40631.0,2.54621292]
[1610227912158,0.13632608,40632.0,40629.0,2.54625984]
[1610227912557,0.13632608,40632.0,40628.0,2.54534719]
[1610227913758,0.4442,40631.0,40628.0,2.54534719]
[1610227913959,0.13632608,40632.0,40628.0,2.54534719]
[1610227914560,0.13632608,40632.0,40622.0,2.6950735]
[1610227914561,0.13632608,40632.0,40626.0,2.54374899]
[1610227915362,0.13632608,40632.0,40625.0,2.54300322]
[1610227915564,4.1148,40626.0,40625.0,2.54300322]
[1610227915762,4.25112608,40626.0,40625.0,2.54300322]
[1610227916562,4.25112608,40626.0,40624.0,2.54217717]
[1610227916861,4.25112608,40626.0,40623.0,2.54216338]
[1610227918463,4.25112608,40626.0,40622.0,2.54136473]
[1610227918663,4.25112608,40626.0,40621.0,2.54055985]
[1610227918963,4.25112608,40626.0,40620.0,2.67692211]
[1610227919362,0.13632608,40626.0,40620.0,0.13632608]
[1610227919562,0.24615608,40626.0,40619.0,2.53974579]
[1610227919765,0.13632608,40620.0,40618.0,2.53985436]
[1610227919964,1.13632608,40620.0,40618.0,2.53985436]
[1610227920165,1.13632608,40620.0,40615.0,2.53998815]
[1610227920567,1.13632608,40620.0,40611.0,2.54019494]
[1610227921365,1.13632608,40620.0,40609.0,2.53894639]
[1610227921766,0.13632608,40610.0,40604.0,2.53757188]
[1610227921966,1.13632608,40610.0,40604.0,2.53757188]
[1610227922166,3.231,40605.0,40600.0,2.53778878]
[1610227922366,3.231,40605.0,40599.0,2.53571444]
[1610227922767,1.13632608,40610.0,40599.0,2.53571444]
[1610227923567,3.694,40600.0,40596.0,0.13632608]
[1610227923967,0.13632608,40597.0,40596.0,0.13632608]
[1610227925469,0.13632608,40597.0,40593.0,0.09866]
[1610227926071,0.13632608,40597.0,40594.0,0.00020326]
[1610227926271,0.13632608,40597.0,40593.0,0.09866]
[1610227926671,0.13632608,40597.0,40594.0,0.00020327]
[1610227927170,3.8528,40595.0,40594.0,0.00020327]
[1610227927571,3.8528,40595.0,40593.0,0.09866]
[1610227928174,1.0,40594.0,40583.0,2.52735233]